[Event "22nd ECCC Women 2017"]
[Site "Antalya"]
[Date "2017.10.13"]
[Round "6"]
[White "Okuyaz, Duru"]
[Black "Kaplan, Ebru"]
[Result "1-0"]
[ECO "B75"]
[WhiteElo "2233"]
[BlackElo "2001"]
[Annotator "NA"]
[PlyCount "101"]
[EventType "team-tourn"]
[EventCountry "TUR"]
[SourceTitle "playchess.com"]
[Source "ChessBase"]
[SourceQuality "1"]
[WhiteTeam "Marmara"]
[BlackTeam "Mediterranean"]
[TimeControl "40/5400+30:1800+30"]

1. e4 {[%emt 0:00:30]} c5 {[%emt 0:01:00]} 2. Nf3 {[%emt 0:00:00]} d6 {[%emt 0:00:30]} 3. d4 {[%emt 0:00:00]} Nf6 {[%emt 0:00:00]} 4. Nc3 {[%emt 0:00:30]} cxd4 {[%emt 0:00:00]} 5. Nxd4 {[%emt 0:00:30]} g6 {[%emt 0:01:30]} 6. Be3 {[%emt 0:00:00]} Bg7 {[%emt 0:00:30]} 7. f3 {[%emt 0:00:00]} a6 {[%emt 0:00:30]} 8. Qd2 {[%emt 0:00:30]} Nbd7 {[%emt 0:01:30]} 9. g4 {[%emt 0:00:30]} b5 {[%emt 0:02:30]} 10. Nc6 {[%emt 0:00:30]} Qc7 {[%emt 0:00:30]} 11. Nxe7 {[%emt 0:00:30]} Bb7 {[%emt 0:00:00]} 12. g5 {[%emt 0:07:30]} Ne5 {[%emt 0:08:00]} 13. Be2 {[%emt 0:05:30]} Kxe7 {[%emt 0:14:30]} 14. gxf6+ {[%emt 0:01:30]} Bxf6 {[%emt 0:00:30]} 15. O-O-O {[%emt 0:04:30]} Rhd8 {[%emt 0:13:30]} 16. Nd5+ $11 {[%emt 0:23:30]} (16. h4 $16) 16... Bxd5 {[%emt 0:00:30]} 17. Qxd5 {[%emt 0:01:30]} Rac8 {[%emt 0:03:30]} 18. Rd2 {[%emt 0:13:30]} Nc4 {[%emt 0:04:30]} 19. Bxc4 {[%emt 0:00:30]} bxc4 {[%emt 0:00:30]} 20. c3 {[%emt 0:00:30]} Rb8 {[%emt 0:00:30]} 21. Bg5 {[%emt 0:00:30]} Rb5 {[%emt 0:00:30]} 22. Bxf6+ {[%emt 0:00:30]} Kxf6 {[%emt 0:00:30]} 23. e5+ {[%emt 0:00:30]} Ke7 {[%emt 0:00:30]} 24. exd6+ {[%emt 0:07:30]} Rxd6 {[%emt 0:14:30]} 25. Re1+ {[%emt 0:06:30]} Re6 {[%emt 0:00:30]} 26. Rxe6+ {[%emt 0:01:30]} fxe6 {[%emt 0:00:30]} 27. Qd4 {[%emt 0:00:30]} Kf7 {[%emt 0:09:30]} 28. Qh8 {[%emt 0:02:30]} Qf4 {[%emt 0:02:30]} 29. Qxh7+ {[%emt 0:00:30]} Kf6 {[%emt 0:00:30]} 30. Qh8+ {[%emt 0:01:30]} Kf7 {[%emt 0:04:08]} 31. Qd4 {[%emt 0:01:30]} Rf5 {[%emt 0:06:48]} 32. Qxf4 {[%emt 0:02:11]} Rxf4 {[%emt 0:00:35]} 33. Rf2 {[%emt 0:00:06]} Kf6 {[%emt 0:00:37]} 34. Kd2 {[%emt 0:00:13]} Kf5 {[%emt 0:01:23]} 35. b3 {[%emt 0:00:56]} g5 {[%emt 0:02:47]} 36. b4 {[%emt 0:04:21]} Rh4 {[%emt 0:01:47]} 37. Ke3 {[%emt 0:02:22]} e5 {[%emt 0:01:28]} 38. a4 {[%emt 0:01:37]} Ke6 {[%emt 0:04:30]} 39. b5 {[%emt 0:02:37]} axb5 {[%emt 0:00:07]} 40. axb5 {[%emt 0:00:00]} Kd5 {[%emt 0:02:20]} 41. Rb2 {[%emt 0:07:37]} Rh7 {[%emt 0:05:30]} 42. b6 {[%emt 0:00:00]} Rb7 {[%emt 0:00:30]} 43. Rb4 {[%emt 0:00:00]} Kd6 {[%emt 0:02:30]} 44. Ke4 {[%emt 0:00:30]} Ke6 {[%emt 0:00:00]} 45. Rb5 {[%emt 0:00:30]} Kd6 {[%emt 0:00:00]} 46. Kf5 {[%emt 0:05:30]} Kc6 {[%emt 0:01:30]} 47. Rb4 {[%emt 0:00:30]} Kd5 {[%emt 0:01:30]} 48. Kxg5 {[%emt 0:00:30]} e4 {[%emt 0:00:30]} 49. fxe4+ {[%emt 0:01:30]} Kxe4 {[%emt 0:03:59]} 50. Rxc4+ {[%emt 0:00:30]} Kd3 {[%emt 0:00:15]} 51. Rc6 {[%emt 0:00:30]} 1-0

[Event "22nd ECCC Women 2017"]
[Site "Antalya"]
[Date "2017.10.13"]
[Round "6"]
[White "Hereklioglu, Sude"]
[Black "Can, Isil"]
[Result "1-0"]
[ECO "D00"]
[WhiteElo "2165"]
[BlackElo "1791"]
[Annotator "NA"]
[PlyCount "69"]
[EventType "team-tourn"]
[EventCountry "TUR"]
[SourceTitle "playchess.com"]
[Source "ChessBase"]
[SourceQuality "1"]
[WhiteTeam "Marmara"]
[BlackTeam "Mediterranean"]
[TimeControl "40/5400+30:1800+30"]

1. d4 {[%emt 0:00:30]} d5 {[%emt 0:01:00]} 2. Bg5 {[%emt 0:00:00]} Nf6 {[%emt 0:00:30]} 3. Nd2 {[%emt 0:03:00]} c6 {[%emt 0:05:30]} 4. c3 {[%emt 0:00:30]} Bf5 {[%emt 0:01:30]} 5. Ngf3 {[%emt 0:02:30]} Nbd7 {[%emt 0:01:30]} 6. Nh4 {[%emt 0:04:30]} e6 {[%emt 0:00:30]} 7. Nxf5 {[%emt 0:05:30]} exf5 {[%emt 0:00:30]} 8. g3 {[%emt 0:02:30]} g6 {[%emt 0:01:30]} 9. Bg2 {[%emt 0:00:00]} Bg7 {[%emt 0:00:00]} 10. O-O {[%emt 0:05:00]} Qb6 {[%emt 0:15:00]} 11. Qc2 {[%emt 0:06:30]} Ne4 {[%emt 0:09:30]} 12. Bxe4 {[%emt 0:05:30]} fxe4 {[%emt 0:01:30]} 13. Nxe4 {[%emt 0:01:30]} O-O {[%emt 0:28:30]} 14. Nd2 {[%emt 0:02:30]} h6 {[%emt 0:00:30]} 15. Bf4 {[%emt 0:00:30]} g5 {[%emt 0:00:30]} 16. Bd6 {[%emt 0:02:30]} Rfe8 {[%emt 0:00:30]} 17. e3 {[%emt 0:02:30]} Re6 {[%emt 0:00:30]} 18. Ba3 {[%emt 0:00:30]} Qd8 {[%emt 0:00:30]} 19. Rae1 {[%emt 0:00:30]} b5 {[%emt 0:00:30]} 20. e4 {[%emt 0:15:30]} a5 {[%emt 0:09:30]} 21. exd5 {[%emt 0:03:30]} cxd5 {[%emt 0:00:30]} 22. Qb3 {[%emt 0:11:30]} Rb8 {[%emt 0:01:30]} 23. Rxe6 {[%emt 0:06:50]} fxe6 {[%emt 0:00:30]} 24. Bd6 {[%emt 0:00:00]} Rb6 {[%emt 0:01:15]} 25. Qa3 {[%emt 0:01:13]} Ra6 {[%emt 0:00:20]} 26. Bc5 {[%emt 0:01:54]} Rc6 {[%emt 0:01:41]} 27. Re1 {[%emt 0:02:25]} Nxc5 {[%emt 0:02:20]} 28. dxc5 {[%emt 0:00:02]} e5 {[%emt 0:04:14]} 29. b4 {[%emt 0:03:06]} a4 {[%emt 0:02:18]} 30. Qc1 {[%emt 0:02:20]} Qf8 {[%emt 0:04:41]} 31. Qd1 {[%emt 0:01:08]} e4 {[%emt 0:03:09]} 32. Nxe4 {[%emt 0:00:25]} Re6 {[%emt 0:01:21]} 33. Qxd5 {[%emt 0:00:38]} Qf7 {[%emt 0:00:03]} 34. c6 {[%emt 0:01:20]} Bxc3 {[%emt 0:00:48]} 35. c7 {[%emt 0:00:57]} 1-0

[Event "22nd ECCC Women 2017"]
[Site "Antalya"]
[Date "2017.10.13"]
[Round "6"]
[White "Arda, Cagil Irmak"]
[Black "Stetsko, Lanita"]
[Result "1-0"]
[ECO "C48"]
[WhiteElo "2040"]
[BlackElo "2254"]
[Annotator "NA"]
[PlyCount "87"]
[EventType "team-tourn"]
[EventCountry "TUR"]
[SourceTitle "playchess.com"]
[Source "ChessBase"]
[SourceQuality "1"]
[WhiteTeam "Anatolia"]
[BlackTeam "Bossa Nova"]
[TimeControl "40/5400+30:1800+30"]

1. e4 {[%emt 0:00:30]} e5 {[%emt 0:01:00]} 2. Nf3 {[%emt 0:00:30]} Nc6 {[%emt 0:00:30]} 3. Nc3 {[%emt 0:00:00]} Nf6 {[%emt 0:00:30]} 4. Bb5 {[%emt 0:00:00]} Bd6 {[%emt 0:03:30]} 5. a3 {[%emt 0:00:30]} a6 {[%emt 0:02:30]} 6. Ba4 {[%emt 0:00:30]} h6 {[%emt 0:01:30]} 7. d3 {[%emt 0:00:30]} b5 {[%emt 0:01:30]} 8. Bb3 {[%emt 0:00:30]} Bc5 {[%emt 0:01:30]} 9. Be3 {[%emt 0:23:30]} Ba7 {[%emt 0:16:30]} 10. O-O {[%emt 0:02:30]} d6 {[%emt 0:02:30]} 11. h3 {[%emt 0:14:30]} O-O {[%emt 0:04:30]} 12. a4 {[%emt 0:11:30]} b4 {[%emt 0:02:30]} 13. Nd5 {[%emt 0:00:00]} Be6 {[%emt 0:06:30]} 14. Qd2 {[%emt 0:05:00]} Bxd5 {[%emt 0:01:30]} 15. exd5 {[%emt 0:02:30]} Ne7 {[%emt 0:01:30]} 16. Bxa7 $11 {[%emt 0:01:30]} Rxa7 {[%emt 0:00:30]} 17. Qxb4 {[%emt 0:00:30]} Nfxd5 {[%emt 0:08:30]} 18. Qh4 {[%emt 0:03:30]} Nf4 {[%emt 0:04:30]} 19. g3 {[%emt 0:04:30]} Nfg6 {[%emt 0:03:30]} 20. Qh5 {[%emt 0:02:30]} Rb7 {[%emt 0:01:30]} 21. Rae1 {[%emt 0:02:30]} Qd7 {[%emt 0:06:30]} 22. d4 {[%emt 0:05:43]} exd4 {[%emt 0:03:30]} 23. Nxd4 {[%emt 0:00:14]} c5 {[%emt 0:01:30]} 24. Ne6 {[%emt 0:03:14]} Rfb8 {[%emt 0:00:30]} 25. Nf4 {[%emt 0:05:11]} Nxf4 {[%emt 0:08:12]} 26. Qxf7+ {[%emt 0:01:36]} Kh8 {[%emt 0:00:30]} 27. Qxf4 {[%emt 0:00:17]} d5 {[%emt 0:00:00]} 28. Rd1 {[%emt 0:01:36]} Qc6 {[%emt 0:01:26]} 29. Rfe1 {[%emt 0:01:02]} Rd8 {[%emt 0:04:37]} 30. Qf7 {[%emt 0:02:42]} Qd7 {[%emt 0:02:56]} 31. Re5 {[%emt 0:02:18]} Nc6 {[%emt 0:05:04]} 32. Qxd7 {[%emt 0:02:03]} Rdxd7 {[%emt 0:01:25]} 33. Rexd5 {[%emt 0:00:20]} Rxd5 {[%emt 0:01:09]} 34. Rxd5 {[%emt 0:01:24]} c4 {[%emt 0:02:50]} 35. Bxc4 {[%emt 0:00:47]} Rxb2 {[%emt 0:00:07]} 36. Bxa6 {[%emt 0:00:50]} Rxc2 {[%emt 0:00:01]} 37. Bb5 {[%emt 0:00:07]} Nb4 {[%emt 0:00:36]} 38. Rd4 {[%emt 0:01:09]} Rb2 {[%emt 0:00:58]} 39. a5 {[%emt 0:00:33]} Nc2 {[%emt 0:01:00]} 40. Rd8+ {[%emt 0:00:30]} Kh7 {[%emt 0:00:09]} 41. Bd3+ {[%emt 0:01:24]} g6 {[%emt 0:00:30]} 42. Rd7+ {[%emt 0:01:30]} Kg8 {[%emt 0:00:30]} 43. Bxc2 {[%emt 0:02:30]} Rxc2 {[%emt 0:00:30]} 44. a6 {[%emt 0:00:30]} 1-0

[Event "22nd ECCC Women 2017"]
[Site "Antalya"]
[Date "2017.10.13"]
[Round "6"]
[White "Ayan, Bengu Sena"]
[Black "Sandu, Mihaela"]
[Result "0-1"]
[ECO "E81"]
[WhiteElo "1888"]
[BlackElo "2278"]
[Annotator "NA"]
[PlyCount "74"]
[EventType "team-tourn"]
[EventCountry "TUR"]
[SourceTitle "playchess.com"]
[Source "ChessBase"]
[SourceQuality "1"]
[WhiteTeam "Aegean"]
[BlackTeam "Timisoara"]
[TimeControl "40/5400+30:1800+30"]

1. d4 {[%emt 0:00:30]} Nf6 {[%emt 0:01:00]} 2. c4 {[%emt 0:00:30]} g6 {[%emt 0:00:00]} 3. f3 {[%emt 0:00:00]} Bg7 {[%emt 0:00:00]} 4. e4 {[%emt 0:00:00]} d6 {[%emt 0:00:00] LiveBook: 759 Games} 5. Nc3 $14 {[%emt 0:00:00]} O-O {[%emt 0:01:00]} 6. Nge2 {[%emt 0:00:00]} Nbd7 {[%emt 0:00:00]} 7. Ng3 {[%emt 0:01:30]} c6 {[%emt 0:10:00]} 8. Be3 {[%emt 0:02:30]} e5 {[%emt 0:03:30]} 9. d5 {[%emt 0:01:30]} cxd5 {[%emt 0:00:30]} 10. cxd5 {[%emt 0:01:30]} a6 {[%emt 0:00:00]} 11. Be2 {[%emt 0:03:30]} h5 {[%emt 0:08:00]} 12. O-O {[%emt 0:05:30]} h4 {[%emt 0:08:30]} 13. Nh1 {[%emt 0:00:00]} Nh5 {[%emt 0:00:30]} 14. Qd2 {[%emt 0:06:00]} Nf4 {[%emt 0:01:30]} 15. Nf2 {[%emt 0:11:30]} Qg5 {[%emt 0:19:30]} 16. Bxf4 {[%emt 0:07:30]} Qxf4 {[%emt 0:02:30]} 17. Qc2 {[%emt 0:04:30]} Bh6 {[%emt 0:01:30]} 18. Rad1 {[%emt 0:05:30]} Qe3 {[%emt 0:04:30]} 19. Rd3 {[%emt 0:00:30]} Qc5 {[%emt 0:00:30]} 20. Kh1 {[%emt 0:00:30]} b5 {[%emt 0:00:30]} 21. Ng4 {[%emt 0:00:30]} Bg5 {[%emt 0:00:30]} 22. a3 {[%emt 0:00:30]} Nb6 {[%emt 0:05:30]} 23. b3 {[%emt 0:17:30]} Bd7 {[%emt 0:04:30]} 24. Qb2 {[%emt 0:01:30]} Rac8 {[%emt 0:00:30]} 25. f4 {[%emt 0:00:30]} exf4 {[%emt 0:03:30]} 26. b4 {[%emt 0:10:00]} Qc7 {[%emt 0:01:30]} 27. e5 {[%emt 0:04:46]} Nc4 {[%emt 0:03:30]} 28. Qa1 {[%emt 0:05:05]} Bxg4 {[%emt 0:04:38]} 29. Bxg4 {[%emt 0:03:34]} Nxe5 {[%emt 0:00:10]} 30. Bxc8 {[%emt 0:00:00]} Nxd3 {[%emt 0:01:58]} 31. Ne4 {[%emt 0:00:14]} Rxc8 {[%emt 0:01:47]} 32. Nxg5 {[%emt 0:00:07]} Qe7 {[%emt 0:00:48]} 33. Qd1 {[%emt 0:02:23]} Qe3 {[%emt 0:02:23]} 34. Qa1 {[%emt 0:02:08]} Nf2+ {[%emt 0:01:04]} 35. Rxf2 {[%emt 0:00:49]} Rc1+ {[%emt 0:00:06]} 36. Rf1 {[%emt 0:00:12]} Rxa1 {[%emt 0:00:01]} 37. Rxa1 {[%emt 0:00:00]} Qe5 {[%emt 0:00:06]} 0-1

[Event "22nd ECCC Women 2017"]
[Site "Antalya"]
[Date "2017.10.13"]
[Round "6"]
[White "Ince, Safiye Oyku"]
[Black "Caglar, Sila"]
[Result "0-1"]
[ECO "B50"]
[WhiteElo "1861"]
[BlackElo "2153"]
[Annotator "NA"]
[PlyCount "68"]
[EventType "team-tourn"]
[EventCountry "TUR"]
[SourceTitle "playchess.com"]
[Source "ChessBase"]
[SourceQuality "1"]
[WhiteTeam "Mediterranean"]
[BlackTeam "Marmara"]
[TimeControl "40/5400+30:1800+30"]

1. e4 {[%emt 0:00:30]} c5 {[%emt 0:01:00]} 2. Nf3 {[%emt 0:00:30]} d6 {[%emt 0:00:30]} 3. c3 {[%emt 0:00:00]} Nf6 {[%emt 0:00:00]} 4. Bc4 {[%emt 0:00:00]} e6 {[%emt 0:00:00]} 5. Qe2 {[%emt 0:00:00]} Be7 {[%emt 0:00:30]} 6. O-O {[%emt 0:00:00]} O-O {[%emt 0:00:00] LiveBook: 22 Games} 7. Bb3 {[%emt 0:00:30] B50: Sicilian: 2...d6, Miscellaneous} b6 {[%emt 0:00:00]} 8. d3 {[%emt 0:00:30]} Bb7 {[%emt 0:00:00]} (8... Ba6 9. Nbd2 Nc6 10. Re1 Rc8 11. Nf1 Re8 12. h3 Ne5 13. Bc2 Ng6 {½-½ (13) Kritz,L (2604)-Corrales Jimenez,F (2629) Lubbock 2013}) 9. Nbd2 {[%emt 0:00:30]} Nc6 {[%emt 0:00:00]} 10. d4 $146 {[%emt 0:02:30]} ({Predecessor:} 10. Rd1 Qc7 11. Nf1 Rac8 12. Ng3 Ba6 13. Bf4 Ne5 14. Bc2 Ng6 15. Bd2 d5 16. c4 Nd7 17. Bc3 {½-½ (17) Manik,M (2495)-Bruned,Y (2316) Salou 2005}) 10... cxd4 {[%emt 0:01:30]} 11. cxd4 {[%emt 0:00:30]} d5 {[%emt 0:00:30]} 12. e5 {[%emt 0:00:30]} Nd7 {[%emt 0:00:00]} 13. Re1 {[%emt 0:01:30]} Nb4 {[%emt 0:00:00]} 14. Nf1 {[%emt 0:02:30]} Ba6 {[%emt 0:00:30]} 15. Qe3 {[%emt 0:00:30]} Rc8 {[%emt 0:00:30]} 16. Bd2 {[%emt 0:01:30]} Nd3 {[%emt 0:01:30]} 17. Reb1 {[%emt 0:00:30]} f5 {[%emt 0:03:30]} 18. exf6 {[%emt 0:04:30]} Rxf6 {[%emt 0:00:30]} 19. Bc3 {[%emt 0:01:30]} Bd6 {[%emt 0:05:30]} 20. Ng3 {[%emt 0:04:30]} Nf4 {[%emt 0:04:30]} 21. a4 {[%emt 0:10:30]} Nf8 {[%emt 0:03:30]} 22. Ne5 {[%emt 0:02:30]} N8g6 {[%emt 0:05:30]} 23. Nxg6 {[%emt 0:05:30]} Rxg6 $19 {[%emt 0:01:30]} 24. Bd1 {[%emt 0:00:30]} Qh4 {[%emt 0:02:30]} 25. Bf3 {[%emt 0:10:30]} Rh6 {[%emt 0:01:30]} 26. h3 {[%emt 0:00:00]} Nxh3+ {[%emt 0:00:30]} 27. gxh3 {[%emt 0:00:00]} Qxh3 {[%emt 0:02:30]} 28. Qxh6 {[%emt 0:00:30]} Qxh6 {[%emt 0:00:30]} 29. Kg2 {[%emt 0:00:30]} Rf8 {[%emt 0:00:30]} 30. Be1 {[%emt 0:02:30]} Qf6 {[%emt 0:02:30]} 31. Bg4 {[%emt 0:00:30]} Bxg3 {[%emt 0:01:30]} 32. Kxg3 {[%emt 0:02:30]} Qf4+ {[%emt 0:00:30]} 33. Kh3 {[%emt 0:00:00]} Bf1+ {[%emt 0:00:00]} 34. Kh4 {[%emt 0:02:00]} Qh2+ {[%emt 0:00:00]} 0-1

[Event "22nd ECCC Women 2017"]
[Site "Antalya"]
[Date "2017.10.13"]
[Round "6"]
[White "Ozbek, Busra"]
[Black "Ozbay, Ece"]
[Result "0-1"]
[ECO "B22"]
[WhiteElo "1850"]
[BlackElo "1998"]
[Annotator "NA"]
[PlyCount "124"]
[EventType "team-tourn"]
[EventCountry "TUR"]
[SourceTitle "playchess.com"]
[Source "ChessBase"]
[SourceQuality "1"]
[WhiteTeam "Mediterranean"]
[BlackTeam "Marmara"]
[TimeControl "40/5400+30:1800+30"]

1. e4 {[%emt 0:00:30]} c5 {[%emt 0:01:00]} 2. c3 {[%emt 0:00:00]} d5 {[%emt 0:01:30]} 3. exd5 {[%emt 0:00:00]} Qxd5 {[%emt 0:00:00]} 4. d4 {[%emt 0:00:30]} Nf6 {[%emt 0:00:00]} 5. Nf3 {[%emt 0:00:30]} Nc6 {[%emt 0:00:00]} 6. Be3 {[%emt 0:00:00]} cxd4 {[%emt 0:00:00]} 7. cxd4 {[%emt 0:00:00]} e6 {[%emt 0:00:30]} 8. Nc3 {[%emt 0:00:30]} Qd6 {[%emt 0:00:30]} 9. a3 {[%emt 0:00:30]} Be7 {[%emt 0:01:30]} 10. Bd3 {[%emt 0:00:30]} O-O {[%emt 0:01:30]} 11. O-O {[%emt 0:00:30]} b6 {[%emt 0:00:30]} 12. Qe2 {[%emt 0:00:30]} Bb7 {[%emt 0:01:30]} 13. Rad1 {[%emt 0:00:30]} Rad8 {[%emt 0:02:30]} 14. Rfe1 {[%emt 0:00:30]} Rfe8 {[%emt 0:00:30]} 15. Bb1 {[%emt 0:00:30]} Qb8 {[%emt 0:01:30]} 16. Bg5 {[%emt 0:00:30]} g6 {[%emt 0:02:30]} 17. Ba2 {[%emt 0:01:30]} Ng4 {[%emt 0:12:30]} 18. g3 {[%emt 0:05:30]} Bxg5 {[%emt 0:06:30]} 19. Nxg5 {[%emt 0:01:30]} Nf6 {[%emt 0:01:30]} 20. Qf3 {[%emt 0:11:30]} h6 {[%emt 0:13:30]} 21. Qxf6 {[%emt 0:02:30]} hxg5 {[%emt 0:00:30]} 22. d5 {[%emt 0:00:30]} exd5 {[%emt 0:01:30]} 23. Rxe8+ {[%emt 0:01:30]} Rxe8 {[%emt 0:00:00]} 24. Bxd5 {[%emt 0:00:00]} Ne5 {[%emt 0:02:00]} 25. Bxb7 {[%emt 0:29:00]} Qxb7 {[%emt 0:00:30]} 26. Rd5 {[%emt 0:00:30]} Nc6 {[%emt 0:13:30]} 27. f3 {[%emt 0:17:30]} g4 {[%emt 0:18:09]} 28. fxg4 {[%emt 0:06:30]} Re6 {[%emt 0:13:53]} 29. Qf4 {[%emt 0:09:59]} Qe7 {[%emt 0:03:17]} 30. Rd2 {[%emt 0:06:24]} Rf6 {[%emt 0:01:22]} 31. Qe4 {[%emt 0:03:31]} Qc5+ {[%emt 0:01:15]} 32. Kg2 {[%emt 0:00:06]} Re6 {[%emt 0:00:18]} 33. Qd5 {[%emt 0:01:12]} Qe7 {[%emt 0:00:36]} 34. Qf3 {[%emt 0:00:46]} Ne5 {[%emt 0:00:30]} 35. Qd1 {[%emt 0:00:20]} Qb7+ {[%emt 0:00:25]} 36. Nd5 {[%emt 0:00:57]} Nc4 {[%emt 0:00:15]} 37. Kf2 {[%emt 0:00:28]} Nxd2 {[%emt 0:00:41]} 38. Qxd2 {[%emt 0:00:13]} Rd6 {[%emt 0:00:00]} 39. Ne7+ {[%emt 0:00:55]} Qxe7 {[%emt 0:00:02]} 40. Qc2 {[%emt 0:00:00]} Rf6+ {[%emt 0:00:17]} 41. Kg2 {[%emt 0:00:39]} Qb7+ {[%emt 0:00:30]} 42. Kg1 {[%emt 0:01:30]} Qf3 {[%emt 0:00:30]} 43. Qc4 {[%emt 0:00:30]} Qf2+ {[%emt 0:00:30]} 44. Kh1 {[%emt 0:00:30]} Qf1+ {[%emt 0:00:30]} 45. Qxf1 {[%emt 0:00:00]} Rxf1+ {[%emt 0:00:00]} 46. Kg2 {[%emt 0:00:00]} Rb1 {[%emt 0:00:00]} 47. b4 {[%emt 0:00:30]} Rb3 {[%emt 0:00:00]} 48. h4 {[%emt 0:00:00]} Rxa3 {[%emt 0:00:00]} 49. h5 {[%emt 0:00:00]} a5 {[%emt 0:00:00]} 50. bxa5 {[%emt 0:00:30]} bxa5 {[%emt 0:00:00]} 51. hxg6 {[%emt 0:00:30]} fxg6 {[%emt 0:00:30]} 52. g5 {[%emt 0:00:00]} Rb3 {[%emt 0:00:30]} 53. Kh3 {[%emt 0:00:00]} a4 {[%emt 0:00:30]} 54. Kh4 {[%emt 0:00:00]} Rb1 {[%emt 0:00:30]} 55. g4 {[%emt 0:00:00]} a3 {[%emt 0:00:00]} 56. Kg3 {[%emt 0:00:00]} a2 {[%emt 0:00:00]} 57. Kf4 {[%emt 0:00:00]} a1=Q {[%emt 0:00:30]} 58. Ke4 {[%emt 0:00:00]} Rb4+ {[%emt 0:00:00]} 59. Kd5 {[%emt 0:00:00]} Qa5+ {[%emt 0:00:00]} 60. Ke6 {[%emt 0:00:00]} Rb6+ {[%emt 0:00:30]} 61. Ke7 {[%emt 0:00:00]} Qa7+ {[%emt 0:00:30]} 62. Ke8 {[%emt 0:00:30]} Rb8# {[%emt 0:00:00]} 0-1

[Event "22nd ECCC Women 2017"]
[Site "Antalya"]
[Date "2017.10.14"]
[Round "7"]
[White "Mammadova, Gulnar"]
[Black "Hereklioglu, Sude"]
[Result "1/2-1/2"]
[ECO "B42"]
[WhiteElo "2385"]
[BlackElo "2165"]
[Annotator "NA"]
[PlyCount "69"]
[EventType "team-tourn"]
[EventCountry "TUR"]
[SourceTitle "playchess.com"]
[Source "ChessBase"]
[SourceQuality "1"]
[WhiteTeam "Odlar Yurdu"]
[BlackTeam "Marmara"]
[TimeControl "40/5400+30:1800+30"]

1. e4 {[%emt 0:00:30]} c5 {[%emt 0:01:00]} 2. Nf3 {[%emt 0:00:30]} e6 {[%emt 0:00:30]} 3. b3 {[%emt 0:00:00]} b6 {[%emt 0:00:00]} 4. c4 {[%emt 0:00:00]} Bb7 {[%emt 0:01:00]} 5. Nc3 {[%emt 0:00:00]} d6 {[%emt 0:00:00]} 6. d4 {[%emt 0:00:00]} cxd4 {[%emt 0:00:00]} 7. Nxd4 {[%emt 0:00:30]} Nf6 {[%emt 0:00:30]} 8. Bd3 {[%emt 0:01:30]} Nbd7 {[%emt 0:00:30]} 9. Qe2 {[%emt 0:01:30]} Be7 {[%emt 0:00:30]} 10. O-O {[%emt 0:01:30]} O-O {[%emt 0:01:30]} 11. Bb2 {[%emt 0:00:30]} a6 {[%emt 0:03:30]} 12. Rfd1 {[%emt 0:03:30]} Qc7 {[%emt 0:02:30]} 13. Rac1 {[%emt 0:01:30]} Rac8 {[%emt 0:01:30]} 14. Bb1 {[%emt 0:03:30]} Rfe8 {[%emt 0:02:30]} 15. Na4 {[%emt 0:03:30]} Nc5 {[%emt 0:02:30]} 16. Nxc5 {[%emt 0:04:30]} bxc5 {[%emt 0:05:30]} 17. Nf3 {[%emt 0:00:30]} e5 {[%emt 0:00:30]} 18. Rc3 {[%emt 0:04:30]} Nd7 {[%emt 0:11:30]} 19. Bc1 {[%emt 0:02:30]} Nf8 {[%emt 0:01:30]} 20. h4 {[%emt 0:05:30]} Ne6 {[%emt 0:00:30]} 21. h5 {[%emt 0:04:30]} Qc6 {[%emt 0:09:30]} 22. Ne1 {[%emt 0:07:30]} Bg5 {[%emt 0:06:30]} 23. Qg4 {[%emt 0:07:30]} Bxc1 {[%emt 0:07:30]} 24. Rdxc1 {[%emt 0:00:30]} Nf4 {[%emt 0:01:30]} 25. Re3 {[%emt 0:04:30]} Rf8 {[%emt 0:15:30]} 26. Nf3 {[%emt 0:08:30]} Rce8 {[%emt 0:04:30]} 27. Nh4 {[%emt 0:01:30]} Bc8 {[%emt 0:02:56]} 28. Qf3 {[%emt 0:00:30]} g5 {[%emt 0:00:48]} 29. Nf5 {[%emt 0:07:30]} Bxf5 {[%emt 0:04:52]} 30. exf5 {[%emt 0:00:30]} Qxf3 {[%emt 0:00:30]} 31. gxf3 {[%emt 0:00:30]} Rb8 {[%emt 0:00:30]} 32. h6 {[%emt 0:00:30]} f6 {[%emt 0:00:30]} 33. Kf1 {[%emt 0:02:30]} Kf7 {[%emt 0:00:34]} 34. Rd1 {[%emt 0:02:30]} Ke7 {[%emt 0:00:33]} 35. Be4 {[%emt 0:01:30]} 1/2-1/2

[Event "22nd ECCC Women 2017"]
[Site "Antalya"]
[Date "2017.10.16"]
[Round "7"]
[White "Savina, Anastasia"]
[Black "Ovechkin, Lilia"]
[Result "1-0"]
[ECO "D31"]
[WhiteElo "2350"]
[BlackElo "1779"]
[Annotator "ChessBase"]
[PlyCount "99"]
[EventType "team-tourn"]
[EventCountry "TUR"]
[SourceTitle "playchess.com"]
[Source "ChessBase"]
[SourceQuality "1"]
[WhiteTeam "Legacy Square Capital"]
[BlackTeam "Beer Sheva"]
[TimeControl "40/5400+30:1800+30"]

1. d4 {[%emt 0:00:30]} d5 {[%emt 0:01:00]} 2. c4 {[%emt 0:00:00]} e6 {[%emt 0:02:30]} 3. Nc3 {[%emt 0:00:00]} Bd6 {[%emt 0:03:30]} 4. Nf3 {[%emt 0:03:30]} c6 {[%emt 0:00:30]} 5. e4 {[%emt 0:01:30]} dxe4 {[%emt 0:02:30]} 6. Nxe4 {[%emt 0:00:30]} Bb4+ {[%emt 0:00:30]} 7. Bd2 {[%emt 0:01:30]} Bxd2+ {[%emt 0:04:30]} 8. Qxd2 {[%emt 0:00:30]} Nf6 {[%emt 0:01:30]} 9. Bd3 {[%emt 0:02:30]} Nxe4 {[%emt 0:09:30]} 10. Bxe4 {[%emt 0:00:30]} Nd7 {[%emt 0:01:30]} 11. Rd1 {[%emt 0:03:30]} Nf6 {[%emt 0:02:30]} 12. Bb1 {[%emt 0:00:00]} O-O {[%emt 0:04:30]} 13. O-O {[%emt 0:01:00]} b6 {[%emt 0:02:30]} 14. Qc2 {[%emt 0:04:30]} Bb7 {[%emt 0:02:30]} 15. Rfe1 {[%emt 0:02:30]} Qd6 {[%emt 0:04:30]} 16. Ne5 {[%emt 0:05:30]} g6 {[%emt 0:03:30]} 17. c5 {[%emt 0:09:30]} Qc7 {[%emt 0:03:30]} 18. Rd3 {[%emt 0:08:30]} Nd7 {[%emt 0:08:30]} 19. h4 {[%emt 0:13:30]} Rfd8 {[%emt 0:09:30]} 20. Ng4 {[%emt 0:16:30]} Qf4 {[%emt 0:04:30]} 21. Rg3 {[%emt 0:03:30]} Qxd4 {[%emt 0:02:30]} 22. h5 {[%emt 0:10:37]} Qxc5 {[%emt 0:00:30]} 23. hxg6 {[%emt 0:02:28]} hxg6 {[%emt 0:11:11]} 24. Nh6+ {[%emt 0:00:57]} Kf8 {[%emt 0:01:43]} 25. Rf3 {[%emt 0:02:05]} f5 {[%emt 0:03:58]} 26. Rxe6 {[%emt 0:02:34]} Qxc2 {[%emt 0:00:50]} 27. Bxc2 {[%emt 0:00:03]} Kg7 {[%emt 0:00:40]} 28. Rg3 {[%emt 0:00:54]} Nf8 {[%emt 0:01:50]} 29. Nxf5+ {[%emt 0:02:18]} Kf7 {[%emt 0:01:07]} 30. Re7+ {[%emt 0:00:44]} Kf6 {[%emt 0:00:22]} 31. Rxb7 {[%emt 0:00:31]} gxf5 {[%emt 0:00:18]} 32. Rgg7 {[%emt 0:00:44]} Rd5 {[%emt 0:01:50]} 33. Rbf7+ {[%emt 0:01:02]} Ke5 {[%emt 0:01:27]} 34. Rxf5+ {[%emt 0:00:12]} Kd4 {[%emt 0:00:10]} 35. Rf6 {[%emt 0:02:17]} Re8 {[%emt 0:01:35]} 36. Rg4+ {[%emt 0:00:32]} Kc5 {[%emt 0:00:30]} 37. g3 {[%emt 0:00:27]} Nd7 {[%emt 0:01:09]} 38. b4+ {[%emt 0:00:28]} Kb5 {[%emt 0:00:44]} 39. a4+ {[%emt 0:00:05]} Ka6 {[%emt 0:00:00]} 40. Rxc6 {[%emt 0:00:00]} Ne5 {[%emt 0:01:36]} 41. Re4 {[%emt 0:10:02]} Rd2 {[%emt 0:08:30]} 42. Rc7 {[%emt 0:03:43]} b5 {[%emt 0:10:04]} 43. axb5+ {[%emt 0:04:32]} Kb6 {[%emt 0:00:35]} 44. Rc5 {[%emt 0:07:34]} Nf3+ {[%emt 0:01:51]} 45. Kg2 {[%emt 0:00:30]} Ne1+ {[%emt 0:00:30]} 46. Kf1 {[%emt 0:06:22]} Rf8 {[%emt 0:02:55]} 47. Kxe1 {[%emt 0:00:30]} Rdxf2 {[%emt 0:00:30]} 48. Re6+ {[%emt 0:00:30]} Kb7 {[%emt 0:00:30]} 49. Be4+ {[%emt 0:00:30]} Kb8 {[%emt 0:00:30]} 50. Re7 {[%emt 0:01:30]} 1-0